Cogmind - Beta 13 @@@ ROGUE MODE // 2024.04.27 @ 01:48:56 Player: Prominous Vale Result: Destroyed by G-34 Mercenary with Small Laser Performance ------------- Evolutions (0) 0 Regions Visited (1) 200 Robots Destroyed (11) 55 Value Destroyed (265) 265 Prototype IDs (2) 40 Alien Tech Used (0) 0 Bonus (0) 0 TOTAL SCORE: 560 Bonus ------- None Cogmind --------- Core Integrity 0/250 Matter 258/300 Energy 106/280 System Corruption 0% Temperature Cool (6) Movement Walking (120) Location -10/Materials Parts ------- > --- POWER (1) -------- Heavy Ion Engine > --- PROPULSION (2) --- Improved Aluminum Leg Improved Aluminum Leg > --- UTILITY (2) ------ Small Storage Unit > --- WEAPON (2) ------- Particle Cannon > --- INVENTORY (8) ---- Ion Engine Light Ion Engine Improved Aluminum Leg Improved Aluminum Leg Heat Sink Sensor Array Particle Cannon Particle Cannon Peak State ------------ > --- POWER ------------ Heavy Ion Engine > --- PROPULSION ------- Improved Aluminum Leg Improved Aluminum Leg > --- UTILITY ---------- Small Storage Unit > --- WEAPON ----------- Particle Cannon Light Assault Rifle > --- INVENTORY -------- Ion Engine Light Ion Engine Improved Aluminum Leg Improved Aluminum Leg Heat Sink Sensor Array Particle Cannon Particle Cannon [Rating: 12] Favorites ----------- Power Light Ion Engine Engine Light Ion Engine Propulsion Aluminum Leg Leg Aluminum Leg Utility Small Storage Unit Device Seismic Detector Storage Small Storage Unit Protection Medium Armor Plating Weapon Light Assault Rifle Energy Gun EM Pulse Gun Energy Cannon Particle Cannon Ballistic Gun Light Assault Rifle Build | -11 -10 ------- Run | Yrd Mat Slots Evolved . | . . Power . | . . Propulsion . | . . Utility . | . . Weapon . | . . Parts Attached 15 | 7 8 Power 2 | 1 1 Engine 2 | 1 1 Core . | . . Reactor . | . . Propulsion 5 | 2 3 Treads . | . . Leg 5 | 2 3 Wheel . | . . Hover . | . . Flight . | . . Utility 3 | 2 1 Device 1 | 1 . Storage 1 | 1 . Processor . | . . Hackware . | . . Protection 1 | . 1 Artifact . | . . Weapon 5 | 2 3 Energy Gun 1 | . 1 Energy Cannon 1 | . 1 Ballistic Gun 3 | 2 1 Ballistic Cannon . | . . Launcher . | . . Special Weapon . | . . Impact Weapon . | . . Slashing Weapon . | . . Piercing Weapon . | . . Special Melee Weapon . | . . Unidentified Prototypes . | . . Parts Lost 9 | . 9 Power 1 | . 1 Propulsion 3 | . 3 Utility 2 | . 2 Weapon 3 | . 3 Highest Loss Streak 6 | . 6 To Critical Strikes . | . . Average Slot Usage (%) 79 | . 79 Engine 10 | . 10 Leg 24 | . 24 Device 4 | . 4 Storage 14 | . 14 Protection 2 | . 2 Energy Gun 1 | . 1 Ballistic Gun 20 | . 20 Naked Turns . | . . Heaviest Build 17 | 11 17 Greatest Support 26 | 20 26 Greatest Overweight (x) 1 | . 1 Average Overweight (x) . | . . Largest Inventory Capacity 8 | 8 8 Average Capacity 7 | 7 8 Most Carried 8 | 5 8 Average Carried 3 | 2 4 Final Capacity 8 | 8 8 Final Carried 8 | 2 8 Class Distribution -------------------- 100% | Mutant Dominant Class ---------------- Mutant | -10/Materials Resources | -11 -10 ----------- Run | Yrd Mat Matter Collected 350 | 294 56 Remotely . | . . Salvage Created 436 | 168 268 Parts 23 | 11 12 Haulers Intercepted . | . . Recyclers Shooed 1 | 1 . Parts Field Recycled . | . . Retrieved Matter . | . . Parts Self-Destructed . | . . Prevented . | . . Kills | -11 -10 ------- Run | Yrd Mat Combat Hostiles Destroyed 6 | . 6 Guns 6 | . 6 Classes Destroyed 4 | 3 1 Worker 2 | 2 . Tunneler 2 | 2 . Recycler 1 | 1 . Grunt 6 | . 6 Best Kill Streak 3 | 3 2 Combat Bots Only 2 | . 2 Max Kills in Single Turn 1 | 1 1 Gunslinging . | . . Exploded . | . . Melee . | . . Uniques/NPCs Destroyed . | . . Combat | -11 -10 -------- Run | Yrd Mat Hostile Shots Fired 125 | . 125 Missed 39 | . 39 Damage Taken 1046 | . 1046 Core 252 | . 252 Absorbed by Shields . | . . Core Remaining (%) 100 | 100 . Volleys Fired 57 | 13 44 Largest 2 | 2 2 Hottest 60 | 40 60 Shots Fired 95 | 26 69 Gun 95 | 26 69 Cannon . | . . Launcher . | . . Special . | . . Kinetic 82 | 26 56 Thermal . | . . Explosive . | . . Electromagnetic 13 | . 13 Robot Hit Streak 10 | 10 9 Robot Miss Streak 2 | 2 2 Penetration Max . | . . Secondary Targets 1 | . 1 Max Gunslinging Chain 1 | . 1 Shots Hit Robots 65 | 17 48 Core Hits 28 | 9 19 Critical Kills . | . . Critical Parts Destroyed 2 | . 2 Critical Strikes 2 | . 2 Destroy 2 | . 2 Melee Attacks . | . . Impact . | . . Slashing . | . . Piercing . | . . Sneak Attacks . | . . Combat Hostiles . | . . Follow-up Attacks . | . . Damage Inflicted 570 | 136 434 Guns 567 | 136 431 Cannons . | . . Explosions . | . . Melee . | . . Ramming 3 | . 3 Kinetic 461 | 136 325 Thermal . | . . Explosive . | . . Electromagnetic 106 | . 106 Impact . | . . Slashing . | . . Piercing . | . . Highest Corruption . | . . Average Corruption . | . . Corruption Purged . | . . Corruption Blocked . | . . Overload Shots . | . . Overflow Damage . | . . Projectiles . | . . Explosions . | . . Melee . | . . Knockbacks . | . . Impact . | . . Kinetic . | . . Secondary . | . . Self-Inflicted Damage . | . . Shots . | . . Rammed . | . . Targets Rammed 1 | . 1 Kicked 1 | . 1 Crushed . | . . Highest Temperature 83 | . 83 Average Temperature 33 | . 33 Received Heat Transfer 594 | . 594 Siege Activations . | . . Robots Corrupted . | . . Combat Hostiles . | . . Parts Fried 1 | . 1 Impact Corruptions . | . . Robots Melted . | . . Combat Hostiles . | . . Parts Melted . | . . Heat Transferred . | . . Parts Sabotaged . | . . Parts Stolen . | . . Parts Stripped . | . . Power Chain Reactions . | . . Alert | -11 -10 ------- Run | Yrd Mat Peak Influence 164 | 25 164 Initial 16 | . 16 Average 70 | 10 96 Maximum Alert Level . | . . Low Security (%) 100 | 100 100 Level 1 . | . . Level 2 . | . . Level 3 . | . . Level 4 . | . . Level 5 . | . . High Security . | . . Max Security . | . . Squads Dispatched 2 | . 2 Investigation 1 | . 1 Extermination . | . . Reinforcement 1 | . 1 Assault . | . . Garrison . | . . Intercept . | . . Searches Triggered . | . . Construction Impeded . | . . Haulers Reinforced . | . . Active Scanning Responses . | . . Cargo Convoy Interrupts . | . . Stealth | -11 -10 --------- Run | Yrd Mat Distress Signals 2 | . 2 Communications Jammed . | . . Distress Signals . | . . Times Spotted 14 | . 14 Peak Tracking Total 5 | . 5 Tactical Retreats . | . . Traps | -11 -10 ------- Run | Yrd Mat Traps Triggered . | . . Indirectly . | . . Trap Hack Attempts . | . . Triggered . | . . Disarmed . | . . Reprogrammed . | . . Reused . | . . Traps Extracted . | . . Installed . | . . Triggered . | . . Machines | -11 -10 ---------- Run | Yrd Mat Machines Disabled . | . . Max in Single Turn . | . . Machines Repaired . | . . Machines Dismantled . | . . Machines Sabotaged . | . . Overloaded Fab Kills . | . . Hacking | -11 -10 --------- Run | Yrd Mat Machines Accessed 4 | . 4 Terminals 3 | . 3 Fabricators . | . . Repair Stations . | . . Recycling Units 1 | . 1 Scanalyzers . | . . Garrison Access . | . . Total Hacks 12 | . 12 Successful 5 | . 5 Failed 7 | . 7 Catastrophic 3 | . 3 Database Lockouts . | . . Manual 6 | . 6 Terminals 10 | . 10 Fabricators . | . . Repair Stations . | . . Recycling Units 2 | . 2 Scanalyzers . | . . Garrison Access . | . . Terminal Hacks 4 | . 4 Robot Analysis 1 | . 1 Prototype ID Bank 1 | . 1 Locate Traps 1 | . 1 Dispatch Records 1 | . 1 Fabricator Hacks . | . . Repair Station Hacks . | . . Recycling Unit Hacks 1 | . 1 Report Inventory 1 | . 1 Scanalyzer . | . . Garrison Access Hacks . | . . Unauthorized Hacks . | . . Terminals . | . . Fabricators . | . . Repair Stations . | . . Recycling Units . | . . Scanalyzers . | . . Garrison Access . | . . Data Cores Recovered . | . . Used . | . . Hacking Detections 4 | . 4 Full Trace Events 1 | . 1 Feedback Events . | . . Feedback Blocked . | . . Robot Schematics Acquired . | . . Robots Built . | . . Authchips . | . . Time . | . . Total Robot Build Rating . | . . Part Schematics Acquired . | . . Parts Built . | . . Authchips . | . . Time . | . . Total Part Build Rating . | . . Parts Repaired . | . . Time . | . . Parts Recycled . | . . Recycled Matter . | . . Retrieved Matter . | . . Retrieved Components . | . . Parts Scanalyzed . | . . Part Schematics Acquired . | . . Parts Damaged . | . . Bothacking | -11 -10 ------------ Run | Yrd Mat Used RIF Installer . | . . Robots Hacked . | . . Non-combat . | . . Combat . | . . Robot Hacks Applied . | . . Relay Couplers Released . | . . Fabnet Peak Effective % . | . . Robots Rewired . | . . Allies Hacked . | . . Hacks Repelled . | . . Allies | -11 -10 -------- Run | Yrd Mat Total Allies . | . . Largest Group . | . . Highest-Rated Group . | . . Highest-Rated Ally . | . . Total Orders . | . . Ally Attacks . | . . Total Damage . | . . Kills . | . . Allies Corrupted . | . . Allies Melted . | . . Intel | -11 -10 ------- Run | Yrd Mat Robot Analysis Total 1 | . 1 Derelict Logs Recovered . | . . Drone Launches . | . . Drone Recoveries . | . . Exploration | -11 -10 ------------- Run | Yrd Mat Turns Passed 486 | 147 339 Spaces Moved 237 | 80 157 Core 26 | 26 . Treads . | . . Legs 211 | 54 157 Wheels . | . . Hover . | . . Flight . | . . Fastest Speed 50 | 50 120 Average Speed 113 | 97 121 Slowest Speed 190 | 120 190 Overloaded Moves . | . . Propulsion Burnouts . | . . Robots Hopped . | . . Cave-ins Triggered . | . . Exploration Rate (%) 17 | 6 28 Regions Visited 1 Branch Regions . Pre-discovered Areas . | . . Known Exits Taken . | . . Unknown Exits Taken 1 | 1 . Scrap Searched . | . . Spaces Dug . | . . Terrain Destroyed . | . . Melee . | . . Projectile . | . . AOE . | . . Terrain Rammed . | . . Walls Destroyed . | . . Machines Disabled . | . . Actions | -11 -10 --------- Run | Yrd Mat Total 374 | 128 246 Wait 45 | 20 25 Move 236 | 79 157 Hop . | . . Pick Up 20 | 9 11 Fast Attach 2 | . 2 Attach 12 | 7 5 Detach . | . . Swap 1 | . 1 Drop . | . . Fire 57 | 13 44 Melee . | . . Ram . | . . Kick 1 | . 1 Crush . | . . Escape Stasis . | . . Rewire . | . . Trap . | . . Miscellaneous . | . . Route ------- -11/Scrapyard -10/Materials (discovered 1 exit: [*Mat]) History --------- Turn | Location | Event 24 | -11/Scrapyard | Discovered new exit (range 14) 148 | -11/Scrapyard | Entered Materials 301 | -10/Materials | Build established: Mutant 359 | -10/Materials | Core integrity fell below 50% 428 | -10/Materials | Core integrity fell below 20% 453 | -10/Materials | Lost 6 parts (1p3n2w) 467 | -10/Materials | Discovered new exit (range 3) 487 | -10/Materials | Destroyed by G-34 Mercenary with Small Laser Last Messages --------------- R-06 Scavenger collects Corrupted Aluminum Leg. R-06 Scavenger collects Corrupted Lgt. Nuclear Core. Kicked G-34 Mercenary out of the way. Lgt. Ion Engine destroyed. Aluminum Leg destroyed. K-01 Serf collects debris. Acquired Med. Armor Plating. Acquired Imp. Aluminum Leg. Aluminum Leg destroyed. Acquired Imp. Aluminum Leg. K-01 Serf collects debris. Acquired Sensor Array. Connecting with Terminal... EXIT=FOUND Acquired Particle Cannon. Med. Armor Plating destroyed. Acquired Particle Cannon. Acquired Hvy. Ion Engine. Lgt. Assault Rifle destroyed. Map ----- +----------------------------------------------------+ | ?????# !!#???????????????????????????????????? | | ?????# !#???????????????????????????????????? | | ?????# ==#???????????????????????????????????? | | ?????### ==#???????????????????????????????????? | | ???????# #???????????????????????????????????? | | ???????# #???????????????????????????????????? | | ???????# #####???????????????????????????????????? | | ???????# #???????????????????????????????????????? | | ???????# #???########????????????????????????????? | | ???????# #???# # ?????????????????????????? | | ???????# ##### """" + #????????????????????????? | | ???????# + """" # #????????????????????????? | | ???????# # """" # #????????????????????????? | | ???????# # # #????????????????????????? | | ???????# / # #????????????????????????? | | ???????##########/### #????????????????????????? | | ????????????????# #?# #????????????????????????? | | ????????????????# #?# #????????????????????????? | | ????????????????# #?# #????????????????????????? | | ????????????????# #?# g#####????????????????????? | | ??????????#######/### [[#????????????????????? | | ??????????# T # g[[#????????????????????? | | ??????????# # ] #????????????????????? | | ??????????# # #????????????????????? | | ??????????# """ """ g * #????????????????????? | | ??????????# """ """ # @**#????????????????????? | | ??????????# """ """ # < #####????????????????????? | | ??????????# # #????????????????????????? | | ??????????# = #####????????????????????????? | | ??????????###########????????????????????????????? | | ?????????????????????????????????????????????????? | | ?????????????????????????????????????????????????? | | ?????????????????????????????????????????????????? | | ?????????????????????????????????????????????????? | | ?????????????????????????????????????????????????? | | ?????????????????????????????????????????????????? | | | | | | | | | | | | | | | | | | | | | | | | | | | | | +----------------------------------------------------+ Best States ------------- Heat Dissipation 25 Energy Generation 10 Energy Capacity 125 Matter Stores 300 Matter Capacity 300 Sight Range 16 Terrain Scan Density 10 Armor Coverage 225 Evasion (%) 55 Item Schematics ----------------- None Robot Schematics ------------------ None Fabricated ------------ Nothing Alien Tech Used ----------------- None Achievements -------------- None Challenges ------------ None Game ------ Seed SystemBoreGravjet Manual? 0 Play Time 00:11:43 Cumulative 8.3 hours Start 2024.04.26 @ 19:56:25 End 2024.04.27 @ 01:48:56 Sessions 2 Manual Loads 0 Difficulty Rogue Special Mode None Game No. 17 Rogue 17 Adventurer 0 Explorer 0 Win Type - Total 0 Types 0/0/0/0/0/0/0/0/0 Lore% 7 Gallery% 14 Achievement% 12 Wizard Run 0 Options --------- Layout 1 ASCII 0 Keyboard 0 Movement Mouse Keybinds 0 Fullscreen 1 Font 24/Smallcaps Map View 50x35 Zoom Use 0% Tactical HUD 0 Map Filters NONE Filters NONE Steam 1 RUN: 8809842a-8797-42c2-ad24-d1affd6d3b0e